fUST/lending_fUST_20251014
["ID","MTS","AMOUNT","RATE_DAILY","PERIOD"]
[391172652,1760406656656,-500.0,0.00021917,2]
[391172654,1760406656666,-500.0,0.00021917,2]
[391172656,1760406656675,-500.0,0.00021917,2]
[391172658,1760406656685,-500.0,0.00021917,2]
[391172659,1760406656694,-500.0,0.00021917,2]
[391172660,1760406656703,-500.0,0.00021917,2]
[391172661,1760406656712,-500.0,0.00021917,2]
[391172662,1760406656720,-500.0,0.00021917,2]
[391172663,1760406656729,-500.0,0.00021917,2]
[391172664,1760406656738,-500.0,0.00021917,2]
[391172665,1760406656748,-500.0,0.00021917,2]
[391172666,1760406656757,-500.0,0.00021917,2]
[391172667,1760406656766,-500.0,0.00021917,2]
[391172668,1760406656777,-306.88659237,0.00021917,2]
[391172669,1760406656786,-500.0,0.00021917,2]
[391172670,1760406656795,-340.6888617,0.00021917,2]
[391172671,1760406656804,-500.0,0.00021917,2]
[391172672,1760406656813,-502.71218904,0.00021917,2]
[391172673,1760406656822,-500.0,0.00021917,2]
[391172674,1760406656831,-502.07572473,0.00021917,2]
[391172675,1760406656840,-500.0,0.00021917,2]
[391172676,1760406656850,-613.40507406,0.00021917,2]
[391172677,1760406656859,-500.0,0.00021917,2]
[391172678,1760406656873,-500.0,0.00021917,2]
[391172679,1760406656882,-500.0,0.00021917,2]
[391172680,1760406656891,-500.0,0.00021917,2]
[391172681,1760406656900,-500.0,0.00021917,2]
[391172682,1760406656910,-500.0,0.00021917,2]
[391172683,1760406656919,-500.0,0.00021917,2]
[391172684,1760406656928,-500.0,0.00021917,2]
[391172685,1760406656938,-500.0,0.00021917,2]
[391172686,1760406656948,-550.58798636,0.00021917,2]
[391172687,1760406656957,-500.0,0.00021917,2]
[391172688,1760406656967,-500.0,0.00021917,2]
[391172689,1760406656976,-500.0,0.00021917,2]
[391172690,1760406656985,-500.0,0.00021917,2]
[391172691,1760406656995,-500.87280735,0.00021917,2]
[391172692,1760406657004,-500.0,0.00021917,2]
[391172693,1760406657013,-180.45992948,0.00021917,2]
[391172694,1760406657023,-500.0,0.00021917,2]
[391172695,1760406657032,-500.0,0.00021917,2]
[391172696,1760406657041,-500.0,0.00021917,2]
[391172697,1760406657050,-500.0,0.00021917,2]
[391172698,1760406657059,-500.0,0.00021917,2]
[391172699,1760406657069,-503.09560062,0.00021917,2]
[391172700,1760406657078,-500.0,0.00021917,2]
[391172701,1760406657088,-500.0,0.00021917,2]
[391172703,1760406657097,-500.0,0.00021917,2]
[391172704,1760406657106,-500.0,0.00021917,2]
[391172705,1760406657114,-500.0,0.00021917,2]
[391172707,1760406657123,-503.83457749,0.00021917,2]
[391172709,1760406657133,-500.0,0.00021917,2]
[391172711,1760406657143,-500.0,0.00021917,2]
[391172713,1760406657152,-504.21770927,0.00021917,2]
[391172715,1760406657161,-500.0,0.00021917,2]
[391172717,1760406657171,-500.0,0.00021917,2]
[391172718,1760406657180,-500.0,0.00021917,2]
[391172720,1760406657189,-501.89881956,0.00021917,2]
[391172722,1760406657198,-500.0,0.00021917,2]
[391172724,1760406657208,-500.0,0.00021917,2]
[391172726,1760406657217,-500.0,0.00021917,2]
[391172728,1760406657229,-500.0,0.00021917,2]
[391172730,1760406657239,-500.0,0.00021917,2]
[391172732,1760406657248,-500.0,0.00021917,2]
[391172734,1760406657257,-558.35,0.00021917,2]
[391172736,1760406657266,-558.35,0.00021917,2]
[391172738,1760406657275,-558.35,0.00021917,2]
[391172740,1760406657285,-558.35,0.00021917,2]
[391172742,1760406657294,-558.35,0.00021917,2]
[391172744,1760406657303,-558.35,0.00021917,2]
[391172746,1760406657311,-558.35,0.00021917,2]
[391172748,1760406657321,-502.94116067,0.00021917,2]
[391172750,1760406657330,-558.35,0.00021917,2]
[391172752,1760406657339,-558.35,0.00021917,2]
[391172754,1760406657347,-558.35,0.00021917,2]
[391172756,1760406657357,-558.35,0.00021917,2]
[391172758,1760406657365,-558.35,0.00021917,2]
[391172760,1760406657374,-558.35,0.00021917,2]
[391172762,1760406657383,-558.35,0.00021917,2]
[391172763,1760406657392,-558.35,0.00021917,2]
[391172765,1760406657401,-558.35,0.00021917,2]
[391172767,1760406657410,-558.35,0.00021917,2]
[391172769,1760406657418,-558.35,0.00021917,2]
[391172771,1760406657427,-558.35,0.00021917,2]
[391172773,1760406657436,-558.35,0.00021917,2]
[391172775,1760406657445,-558.35,0.00021917,2]
[391172777,1760406657453,-558.35,0.00021917,2]
[391172779,1760406657462,-558.35,0.00021917,2]
[391172781,1760406657471,-558.58750096,0.00021917,2]
[391172783,1760406657480,-500.0,0.00021917,2]
[391172785,1760406657488,-500.0,0.00021917,2]
[391172787,1760406657497,-500.0,0.00021917,2]
[391172789,1760406657506,-500.0,0.00021917,2]
[391172791,1760406657514,-500.0,0.00021917,2]
[391172793,1760406657523,-500.0,0.00021917,2]
[391172795,1760406657532,-500.0,0.00021917,2]
[391172797,1760406657541,-500.0,0.00021917,2]
[391172798,1760406657550,-500.0,0.00021917,2]
[391172800,1760406657558,-500.0,0.00021917,2]
[391172802,1760406657568,-414.37236926,0.00021917,2]
[391172804,1760406657577,-217.42456168,0.00021917,2]
[391172806,1760406657585,-504.17709086,0.00021917,2]
[391172808,1760406657594,-565.88876734,0.00021917,2]
[391172810,1760406657603,-500.0,0.00021917,2]
[391172812,1760406657612,-500.0,0.00021917,2]
[391172814,1760406657621,-500.0,0.00021917,2]
[391172816,1760406657629,-500.0,0.00021917,2]
[391172818,1760406657639,-500.0,0.00021917,2]
[391172820,1760406657648,-500.0,0.00021917,2]
[391172822,1760406657656,-503.37204034,0.00021917,2]
[391172824,1760406657665,-500.0,0.00021917,2]
[391172826,1760406657674,-505.80602676,0.00021917,2]
[391172828,1760406657683,-500.0,0.00021917,2]
[391172830,1760406657692,-500.0,0.00021917,2]
[391172832,1760406657700,-500.0,0.00021917,2]
[391172834,1760406657710,-500.0,0.00021917,2]
[391172836,1760406657719,-512.50893266,0.00021917,2]
[391172838,1760406657727,-500.0,0.00021917,2]
[391172839,1760406657736,-500.0,0.00021917,2]
[391172841,1760406657745,-309.31804687,0.00021917,2]
[391172843,1760406657754,-500.0,0.00021917,2]
[391172844,1760406657763,-502.37933271,0.00021917,2]
[391172846,1760406657773,-500.78144593,0.00021917,2]
[391172848,1760406657782,-1004.03582934,0.00021917,2]
[391172850,1760406657791,-500.0,0.00021917,2]
[391172852,1760406657800,-500.0,0.00021917,2]
[391172854,1760406657809,-502.7755679,0.00021917,2]
[391172856,1760406657818,-500.0,0.00021917,2]
[391172858,1760406657828,-503.88957946,0.00021917,2]
[391172860,1760406657837,-503.97830543,0.00021917,2]
[391172862,1760406657846,-575.90697119,0.00021917,2]
[391172864,1760406657855,-500.0,0.00021917,2]
[391172866,1760406657869,-500.0,0.00021917,2]
[391172868,1760406657879,-511.10964554,0.00021917,2]
[391172870,1760406657888,-500.0,0.00021917,2]
[391172872,1760406657897,-501.10538795,0.00021917,2]
[391172874,1760406657907,-500.0,0.00021917,2]
[391172875,1760406657916,-500.0,0.00021917,2]
[391172877,1760406657924,-500.0,0.00021917,2]
[391172879,1760406657934,-500.0,0.00021917,2]
[391172881,1760406657944,-500.0,0.00021917,2]
[391172883,1760406657954,-500.0,0.00021917,2]
[391172885,1760406657963,-500.0,0.00021917,2]
[391172887,1760406657972,-500.0,0.00021917,2]
[391172889,1760406657981,-501.31558924,0.00021917,2]
[391172891,1760406657991,-571.1769525,0.00021917,2]
[391172892,1760406658000,-500.0,0.00021917,2]
[391172894,1760406658009,-504.08829967,0.00021917,2]
[391172896,1760406658018,-502.54591222,0.00021917,2]
[391172898,1760406658028,-500.0,0.00021917,2]
[391172900,1760406658038,-502.42050934,0.00021917,2]
[391172902,1760406658047,-500.0,0.00021917,2]
[391172904,1760406658056,-447.73221987,0.00021917,2]
[391172906,1760406658065,-500.0,0.00021917,2]
[391172908,1760406658074,-500.0,0.00021917,2]
[391172910,1760406658083,-500.0,0.00021917,2]
[391172912,1760406658092,-163.19475882,0.00021917,2]
[391172914,1760406658101,-500.0,0.00021917,2]
[391172915,1760406658110,-500.0,0.00021917,2]
[391172917,1760406658119,-500.0,0.00021917,2]
[391172919,1760406658128,-500.0,0.00021917,2]
[391172921,1760406658137,-500.0,0.00021917,2]
[391172923,1760406658146,-500.0,0.00021917,2]
[391172925,1760406658155,-447.9715676,0.00021917,2]
[391172927,1760406658164,-500.0,0.00021917,2]
[391172929,1760406658174,-500.0,0.00021917,2]
[391172931,1760406658183,-500.0,0.00021917,2]
[391172933,1760406658192,-500.0,0.00021917,2]
[391172935,1760406658201,-500.0,0.00021917,2]
[391172937,1760406658210,-500.0,0.00021917,2]
[391172939,1760406658219,-500.0,0.00021917,2]
[391172941,1760406658228,-411.17666722,0.00021917,2]
[391172943,1760406658238,-507.43318511,0.00021917,2]
[391172944,1760406658247,-500.0,0.00021917,2]
[391172946,1760406658257,-500.0,0.00021917,2]
[391172948,1760406658267,-500.0,0.00021917,2]
[391172961,1760406658377,-500.0,0.00021917,2]
[391172963,1760406658386,-419.23616025,0.00021917,2]
[391172965,1760406658396,-500.0,0.00021917,2]
[391172967,1760406658405,-516.58208949,0.00021917,2]
[391172969,1760406658414,-500.0,0.00021917,2]
[391172971,1760406658423,-500.0,0.00021917,2]
[391172972,1760406658432,-500.0,0.00021917,2]
[391172974,1760406658441,-500.0,0.00021917,2]
[391172976,1760406658450,-500.0,0.00021917,2]
[391172978,1760406658459,-500.0,0.00021917,2]
[391172980,1760406658468,-500.0,0.00021917,2]
[391172982,1760406658477,-500.0,0.00021917,2]
[391172984,1760406658486,-500.0,0.00021917,2]
[391172986,1760406658496,-621.25542855,0.00021917,2]
[391172988,1760406658504,-500.0,0.00021917,2]
[391172990,1760406658514,-500.0,0.00021917,2]
[391172992,1760406658523,-500.0,0.00021917,2]
[391172994,1760406658532,-501.89298167,0.00021917,2]
[391172996,1760406658541,-247.54876915,0.00021917,2]
[391172998,1760406658550,-500.0,0.00021917,2]
[391172999,1760406658559,-500.0,0.00021917,2]
[391173001,1760406658568,-502.67420608,0.00021917,2]
[391173003,1760406658578,-501.54116652,0.00021917,2]
[391173005,1760406658587,-501.3675553,0.00021917,2]
[391173007,1760406658596,-500.0,0.00021917,2]
[391173009,1760406658604,-500.0,0.00021917,2]
[391173011,1760406658613,-500.0,0.00021917,2]
[391173013,1760406658622,-500.0,0.00021917,2]
[391173015,1760406658631,-408.4341125,0.00021917,2]
[391173017,1760406658640,-500.0,0.00021917,2]
[391173019,1760406658649,-502.24258448,0.00021917,2]
[391173021,1760406658658,-500.0,0.00021917,2]
[391173023,1760406658667,-501.34281378,0.00021917,2]
[391173025,1760406658676,-504.06738919,0.00021917,2]
[391173026,1760406658685,-500.0,0.00021917,2]
[391173028,1760406658694,-500.0,0.00021917,2]
[391173030,1760406658703,-500.0,0.00021917,2]
[391173032,1760406658712,-500.0,0.00021917,2]
[391173034,1760406658721,-500.0,0.00021917,2]
[391173036,1760406658730,-505.02720768,0.00021917,2]
[391173038,1760406658739,-500.0,0.00021917,2]
[391173040,1760406658748,-500.0,0.00021917,2]
[391173042,1760406658758,-500.0,0.00021917,2]
[391173044,1760406658766,-562.03658214,0.00021917,2]
[391173046,1760406658777,-500.0,0.00021917,2]
[391173048,1760406658786,-501.7138987,0.00021917,2]
[391173049,1760406658795,-500.0,0.00021917,2]
[391173051,1760406658804,-500.0,0.00021917,2]
[391173052,1760406658813,-600.54701176,0.00021917,2]
[391173053,1760406658822,-500.0,0.00021917,2]
[391173054,1760406658831,-500.0,0.00021917,2]
[391173055,1760406658840,-500.0,0.00021917,2]
[391173056,1760406658849,-500.0,0.00021917,2]
[391173057,1760406658859,-500.0,0.00021917,2]
[391173058,1760406658871,-500.0,0.00021917,2]
[391173059,1760406658881,-500.0,0.00021917,2]
[391173060,1760406658890,-500.0,0.00021917,2]
[391173061,1760406658898,-500.0,0.00021917,2]
[391173062,1760406658909,-171.47562443,0.00021917,2]
[391173063,1760406658917,-500.0,0.00021917,2]
[391173064,1760406658927,-500.0,0.00021917,2]
[391173065,1760406658935,-545.08784947,0.00021917,2]
[391173066,1760406658946,-493.33990861,0.00021917,2]
[391173067,1760406658957,-500.0,0.00021917,2]
[391173068,1760406658966,-500.0,0.00021917,2]
[391173069,1760406658975,-500.0,0.00021917,2]
[391173070,1760406658984,-500.0,0.00021917,2]
[391173071,1760406658993,-500.0,0.00021917,2]
[391173072,1760406659003,-500.0,0.00021917,2]
[391173073,1760406659012,-605.68798889,0.00021917,2]
[391173074,1760406659021,-501.22604118,0.00021917,2]
[391173075,1760406659030,-524.28611969,0.00021917,2]
[391173076,1760406659039,-500.0,0.00021917,2]
[391173077,1760406659048,-500.0,0.00021917,2]
[391173078,1760406659058,-502.39926703,0.00021917,2]
[391173079,1760406659067,-502.56498534,0.00021917,2]
[391173080,1760406659078,-500.0,0.00021917,2]
[391173081,1760406659087,-506.90557651,0.00021917,2]
[391173082,1760406659096,-500.0,0.00021917,2]
[391173083,1760406659106,-500.0,0.00021917,2]
[391173084,1760406659115,-500.0,0.00021917,2]
[391173085,1760406659124,-500.0,0.00021917,2]
[391173086,1760406659133,-347.35790893,0.00021917,2]
[391173087,1760406659142,-500.0,0.00021917,2]
[391173088,1760406659151,-501.15344361,0.00021917,2]
[391173089,1760406659160,-500.0,0.00021917,2]
[391173090,1760406659169,-500.0,0.00021917,2]
[391173091,1760406659178,-500.0,0.00021917,2]
[391173092,1760406659187,-526.87263813,0.00021917,2]
[391173093,1760406659196,-500.0,0.00021917,2]
[391173094,1760406659204,-500.0,0.00021917,2]
[391173095,1760406659213,-500.0,0.00021917,2]
[391173096,1760406659222,-500.0,0.00021917,2]
[391173097,1760406659231,-500.0,0.00021917,2]
[391173098,1760406659240,-357.1594391,0.00021917,2]
[391173099,1760406659249,-500.0,0.00021917,2]
[391173100,1760406659258,-500.0,0.00021917,2]
[391173101,1760406659266,-500.0,0.00021917,2]
[391173102,1760406659275,-500.0,0.00021917,2]
[391173103,1760406659284,-500.0,0.00021917,2]
[391173104,1760406659293,-500.0,0.00021917,2]
[391173105,1760406659301,-500.0,0.00021917,2]
[391173106,1760406659310,-500.0,0.00021917,2]
[391173107,1760406659319,-500.0,0.00021917,2]
[391173108,1760406659327,-500.0,0.00021917,2]
[391173109,1760406659336,-500.0,0.00021917,2]
[391173110,1760406659345,-500.0,0.00021917,2]
[391173111,1760406659354,-500.0,0.00021917,2]
[391173112,1760406659362,-500.0,0.00021917,2]
[391173113,1760406659372,-500.0,0.00021917,2]
[391173114,1760406659380,-217.42686697,0.00021917,2]
[391173115,1760406659387,-532.75013884,0.00021917,2]
[391173116,1760406659393,-500.0,0.00021917,2]
[391173117,1760406659400,-502.58499649,0.00021917,2]
[391173118,1760406659406,-500.0,0.00021917,2]
[391173119,1760406659412,-500.0,0.00021917,2]
[391173120,1760406659419,-506.50536573,0.00021917,2]
[391173121,1760406659426,-500.0,0.00021917,2]
[391173122,1760406659433,-500.0,0.00021917,2]
[391173123,1760406659440,-634.02051912,0.00021917,2]
[391173124,1760406659446,-503.28729527,0.00021917,2]
[391173125,1760406659453,-500.0,0.00021917,2]
[391173126,1760406659460,-500.0,0.00021917,2]
[391173127,1760406659466,-500.0,0.00021917,2]
[391173128,1760406659473,-500.0,0.00021917,2]
[391173129,1760406659480,-500.0,0.00021917,2]
[391173130,1760406659487,-579.37677665,0.00021917,2]
[391173131,1760406659493,-500.6452224,0.00021917,2]
[391173132,1760406659500,-500.0,0.00021917,2]
[391173133,1760406659508,-500.0,0.00021917,2]
[391173134,1760406659516,-502.10974627,0.00021917,2]
[391173135,1760406659523,-500.0,0.00021917,2]
[391173136,1760406659531,-500.0,0.00021917,2]
[391173137,1760406659538,-500.0,0.00021917,2]
[391173138,1760406659544,-500.0,0.00021917,2]
[391173139,1760406659550,-456.10350109,0.00021917,2]
[391173140,1760406659557,-500.0,0.00021917,2]
[391173141,1760406659564,-500.0,0.00021917,2]
[391173142,1760406659570,-501.97122757,0.00021917,2]
[391173143,1760406659577,-511.13139511,0.00021917,2]
[391173144,1760406659583,-503.49910851,0.00021917,2]
[391173145,1760406659590,-504.7634385,0.00021917,2]
[391173146,1760406659597,-500.99324795,0.00021917,2]
[391173147,1760406659604,-500.0,0.00021917,2]
[391173148,1760406659612,-504.35650353,0.00021917,2]
[391173149,1760406659618,-507.90710721,0.00021917,2]
[391173150,1760406659624,-500.0,0.00021917,2]
[391173151,1760406659630,-500.0,0.00021917,2]
[391173152,1760406659637,-500.0,0.00021917,2]
[391173153,1760406659643,-504.61090333,0.00021917,2]
[391173154,1760406659651,-500.0,0.00021917,2]
[391173155,1760406659659,-505.07517962,0.00021917,2]
[391173156,1760406659666,-500.0,0.00021917,2]
[391173157,1760406659673,-513.18937463,0.00021917,2]
[391173158,1760406659680,-500.0,0.00021917,2]
[391173159,1760406659686,-500.0,0.00021917,2]
[391173160,1760406659693,-500.0,0.00021917,2]
[391173161,1760406659700,-500.0,0.00021917,2]
[391173162,1760406659706,-500.0,0.00021917,2]
[391173163,1760406659712,-500.0,0.00021917,2]
[391173164,1760406659720,-530.47799829,0.00021917,2]
[391173165,1760406659727,-500.75658303,0.00021917,2]
[391173166,1760406659733,-501.51695083,0.00021917,2]
[391173167,1760406659740,-502.11509393,0.00021917,2]
[391173168,1760406659748,-500.0,0.00021917,2]
[391173169,1760406659755,-500.0,0.00021917,2]
[391173170,1760406659762,-500.0,0.00021917,2]
[391173171,1760406659770,-500.0,0.00021917,2]
[391173172,1760406659776,-500.0,0.00021917,2]
[391173173,1760406659783,-500.0,0.00021917,2]
[391173174,1760406659789,-500.0,0.00021917,2]
[391173175,1760406659796,-500.0,0.00021917,2]
[391173176,1760406659802,-488.72821025,0.00021917,2]
[391173177,1760406659808,-500.0,0.00021917,2]
[391173178,1760406659814,-500.0,0.00021917,2]
[391173179,1760406659820,-500.0,0.00021917,2]
[391173180,1760406659827,-500.0,0.00021917,2]
[391173181,1760406659833,-500.0,0.00021917,2]
[391173182,1760406659839,-500.0,0.00021917,2]
[391173183,1760406659846,-500.0,0.00021917,2]
[391173184,1760406659854,-587.3230361,0.00021917,2]
[391173185,1760406659863,-500.0,0.00021917,2]
[391173186,1760406659871,-500.0,0.00021917,2]
[391173187,1760406659878,-500.0,0.00021917,2]
[391173188,1760406659884,-500.0,0.00021917,2]
[391173189,1760406659891,-507.95836787,0.00021917,2]
[391173190,1760406659897,-500.0,0.00021917,2]
[391173191,1760406659904,-500.0,0.00021917,2]
[391173192,1760406659911,-348.16135088,0.00021917,2]
[391173193,1760406659918,-500.0,0.00021917,2]
[391173194,1760406659923,-500.0,0.00021917,2]
[391173195,1760406659931,-500.0,0.00021917,2]
[391173196,1760406659940,-514.21148654,0.00021917,2]
[391173197,1760406659946,-500.82357862,0.00021973,2]
[391173198,1760406659954,-500.0,0.00021973,2]
[391173199,1760406659963,-500.0,0.00021973,2]
[391173200,1760406659972,-503.09828403,0.00021973,2]
[391173201,1760406659981,-500.0,0.00021973,2]
[391173202,1760406659990,-500.0,0.00021973,2]
[391173203,1760406659999,-200.5481334,0.00021973,2]
[391173204,1760406660009,-500.23894583,0.00021973,2]
[391173205,1760406660018,-502.96210382,0.00021973,2]
[391173206,1760406660028,-500.0,0.00021973,2]
[391173207,1760406660039,-255.94594374,0.00021973,2]
[391173208,1760406660049,-501.33071766,0.00021973,2]
[391173209,1760406660059,-37280.73170821,0.00021976,2]
[391173211,1760406660069,-160.0,0.00021978,2]
[391173213,1760406660078,-62180.26,0.00022,7]
[391173215,1760406660087,-165.0,0.00022,2]
[391173217,1760406660096,-502.20881861,0.00022021,2]
[391173219,1760406660106,-1000.0,0.00022021,2]
[391173221,1760406660115,-1071.35433668,0.00022021,2]
[391173223,1760406660124,-613.99309105,0.00022021,2]
[391173225,1760406660134,-1000.0,0.00022021,2]
[391173227,1760406660143,-500.0,0.00022021,2]
[391173229,1760406660153,-1000.0,0.00022021,2]
[391173231,1760406660162,-1000.0,0.00022021,2]
[391173233,1760406660172,-1004.71422386,0.00022021,2]
[391173235,1760406660181,-1000.0,0.00022021,2]
[391173237,1760406660190,-1000.0,0.00022021,2]
[391173239,1760406660200,-1000.0,0.00022021,2]
[391173241,1760406660210,-500.0,0.00022062,2]
[391173243,1760406660222,-303.39,0.00022088,2]
[391173245,1760406660232,-151.0,0.000221,9]
[391173247,1760406660241,-5000.0,0.0002216,2]
[391173249,1760406660250,-5033.04979759,0.00022171,2]
[391173251,1760406660260,-500.0,0.000222,2]
[391173253,1760406660269,-381.01,0.000222,2]
[391173255,1760406660278,-381.01,0.000222,2]
[391173257,1760406660287,-381.01,0.000222,2]
[391173259,1760406660296,-381.01,0.000222,2]
[391173261,1760406660305,-381.01,0.000222,2]
[391173263,1760406660314,-381.01,0.000222,2]
[391173265,1760406660324,-381.04,0.000222,2]
[391173267,1760406660333,-1500.0,0.00022268,2]
[391173269,1760406660342,-279.92923206,0.00022272,2]
[391173270,1760406660352,-500.0,0.00022272,2]
[391173271,1760406660360,-500.0,0.00022272,2]
[391173272,1760406660369,-500.0,0.00022272,2]
[391173273,1760406660474,-617.43451381,0.00022272,2]
[391173274,1760406660483,-500.0,0.00022272,2]
[391173275,1760406660492,-1423.5598308,0.00022338,2]
[391173276,1760406660502,-3392.26,0.00022348,3]
[391173277,1760406660510,-1696.14,0.00022348,3]
[391173278,1760406660520,-848.06,0.00022348,3]
[391173279,1760406660529,-424.04,0.00022348,3]
[391173280,1760406660538,-303.39635958,0.00022362,2]
[391173281,1760406660547,-195.0,0.00022387,2]
[391173282,1760406660556,-151.0,0.000224,5]
[391173283,1760406660565,-501.47584637,0.00022421,2]
[391173284,1760406660574,-909.59158678,0.00022421,2]
[391173285,1760406660584,-1008.83361366,0.00022421,2]
[391173286,1760406660593,-1000.0,0.00022421,2]
[391173287,1760406660602,-1000.0,0.00022421,2]
[391173288,1760406660611,-1000.0,0.00022421,2]
[391173289,1760406660621,-1002.56810543,0.00022421,2]
[391173290,1760406660630,-1000.0,0.00022421,2]
[391173291,1760406660639,-504.23378731,0.00022421,2]
[391173292,1760406660649,-1000.99033519,0.00022421,2]
[391173293,1760406660658,-1000.0,0.00022421,2]
[391173294,1760406660667,-502.37818866,0.00022421,2]
[391173295,1760406660676,-505.25278766,0.00022421,2]
[391173296,1760406660685,-503.30338988,0.00022421,2]
[391173297,1760406660694,-1005.04973629,0.00022421,2]
[391173298,1760406660704,-507.42612004,0.00022421,2]
[391173299,1760406660713,-1000.0,0.00022421,2]
[391173300,1760406660723,-1000.0,0.00022421,2]
[391173301,1760406660731,-500.97585457,0.00022521,2]
[391173302,1760406660740,-501.10601427,0.00022521,2]
[391173303,1760406660750,-1000.0,0.00022521,2]
[391173304,1760406660761,-1000.0,0.00022521,2]
[391173305,1760406660771,-507.76677631,0.00022521,2]
[391173306,1760406660781,-260.0,0.00022526,2]
[391173307,1760406660791,-1500.0,0.00022568,2]
[391173308,1760406660800,-500.0,0.00022568,2]
[391173309,1760406660809,-1002.31346583,0.00022568,2]
[391173310,1760406660818,-1002.56346801,0.00022568,2]
[391173311,1760406660828,-1009.22414146,0.00022568,2]
[391173312,1760406660836,-1120.17371076,0.00022568,2]
[391173313,1760406660846,-1500.0,0.00022568,2]
[391173314,1760406660855,-500.0,0.00022632,2]
[391173315,1760406660866,-151.0,0.000227,6]
[391173316,1760406660876,-151.23820726,0.00022738,2]
[391173317,1760406660885,-500.0,0.00022738,2]
[391173318,1760406660895,-500.0,0.00022738,2]
[391173319,1760406660904,-500.0,0.00022793,2]
[391173320,1760406660914,-500.0,0.00022793,2]
[391173321,1760406660924,-151.0,0.000228,8]
[391173322,1760406660933,-2000.0,0.00022816,2]
[391173323,1760406660942,-501.60511414,0.0002282,2]
[391173324,1760406660952,-1000.0,0.0002282,2]
[391173325,1760406660961,-1000.0,0.0002282,2]
[391173326,1760406660971,-1000.0,0.0002282,2]
[391173327,1760406660980,-420.0,0.0002282,2]
[391173328,1760406660989,-500.0,0.00022848,2]
[391173329,1760406660998,-502.31758112,0.00022848,2]
[391173330,1760406661007,-4650.43873678,0.00022889,2]
[391173331,1760406661017,-503.64701811,0.00022902,2]
[391173332,1760406661026,-500.0,0.00022906,2]
[391173333,1760406661040,-1680.0,0.00022927,2]
[391173334,1760406661049,-151.87773016,0.00022957,2]
[391173335,1760406661059,-500.0,0.00022957,2]
[391173336,1760406661068,-151.0,0.00022957,2]
[391173337,1760406661078,-151.83943699,0.00022957,2]
[391173338,1760406661087,-151.95213376,0.00022957,2]
[391173339,1760406661097,-151.48161483,0.00022957,2]
[391173340,1760406661106,-151.54239985,0.00022957,2]
[391173341,1760406661116,-153.88144841,0.00022957,2]
[391173342,1760406661125,-152.31295025,0.00022957,2]
[391173343,1760406661135,-157.21960119,0.00022957,2]
[391173344,1760406661144,-151.0,0.00022957,2]
[391173345,1760406661153,-207.18338576,0.00022957,2]
[391173346,1760406661163,-176.28429008,0.00022957,2]
[391173347,1760406661173,-152.95737341,0.00022957,2]
[391173348,1760406661182,-152.22499447,0.00022957,2]
[391173349,1760406661191,-151.12001261,0.00022957,2]
[391173350,1760406661200,-154.75605917,0.00022957,2]
[391173351,1760406661209,-152.8489755,0.00022957,2]
[391173352,1760406661219,-500.0,0.00022957,2]
[391173353,1760406661228,-151.67901807,0.00022957,2]
[391173354,1760406661237,-1500.0,0.00022968,2]
[391173355,1760406661246,-1500.0,0.00022968,2]
[391173356,1760406661256,-1500.0,0.00022968,2]
[391173357,1760406661265,-1500.0,0.00022968,2]